bitfinex-derivatives/quotes_ETHF0:USTF0_20241230
["timestamp","ask_amount","ask_price","bid_price","bid_amount"]
[1735573094075,0.30154,3323.4,3323.0,3.20211118]
[1735573094287,3.2078,3323.9,3323.0,3.20211118]
[1735573094575,3.5093,3323.9,3323.3,0.30155]
[1735573094781,3.2078,3323.9,3323.4,0.30153]
[1735573094977,3.2078,3324.3,3323.5,3.2078]
[1735573095275,0.30147,3324.2,3323.6,1.438]
[1735573095478,3.2078,3324.3,3323.6,1.438]
[1735573095674,0.30148,3324.0,3323.6,1.438]
[1735573095876,0.30147,3324.2,3323.6,1.73951]
[1735573096071,0.30148,3324.1,3323.6,1.73952]
[1735573096280,1.8024,3324.5,3323.7,3.86807517]
[1735573096483,0.30144,3324.5,3324.4,3.2078]
[1735573096878,0.75354,3324.8,3324.0,3.2078]
[1735573097185,0.30139,3325.1,3324.0,3.50928]
[1735573097477,0.30146,3324.3,3324.0,3.2078]
[1735573097682,8.2078,3325.2,3324.0,3.2078]
[1735573097876,0.30151,3323.7,3323.6,3.2078]
[1735573098070,0.75365,3324.3,3323.0,1.438]
[1735573098071,3.2078,3324.4,3323.2,3.2078]
[1735573098376,0.30155,3323.3,3323.2,4.6458]
[1735573098581,0.30155,3323.3,3323.2,3.2078]
[1735573098984,0.30152,3323.7,3323.2,3.2078]
[1735573099174,0.9008,3323.9,3323.6,3.2078]
[1735573099376,0.8741,3324.2,3323.6,3.2078]
[1735573100183,0.3015,3323.8,3323.6,3.2078]
[1735573100483,0.30148,3324.1,3323.6,3.50932]
[1735573100684,0.30149,3324.0,3323.6,3.2078]
[1735573101084,0.8741,3324.2,3323.9,0.30149]
[1735573101377,0.30144,3324.5,3324.1,3.2078]
[1735573101573,0.8595,3324.9,3324.1,3.2078]
[1735573101775,0.30142,3324.8,3324.6,3.2078]
[1735573101977,0.8595,3324.9,3324.6,3.2078]
[1735573102183,3.2078,3326.0,3324.8,3.86807517]
[1735573102378,0.30137,3325.3,3325.2,3.2078]
[1735573102581,4.1019,3326.0,3324.7,3.2078]
[1735573102582,0.75331,3325.9,3324.7,3.2078]
[1735573102883,0.30138,3325.2,3324.7,3.2078]
[1735573103084,1.0546,3325.9,3324.7,3.50921]
[1735573103280,4.1019,3326.0,3325.1,3.2078]
[1735573103582,4.1019,3326.0,3325.3,4.16943517]
[1735573103583,0.30131,3325.9,3325.3,4.16943517]
[1735573103877,0.30133,3325.7,3325.6,3.2078]
[1735573105781,0.75326,3326.0,3325.3,3.86807517]
[1735573105983,3.2078,3326.1,3325.3,3.86807517]
[1735573106277,0.30134,3325.6,3325.3,4.16943517]
[1735573106477,3.2078,3326.1,3325.2,1.437]
[1735573106478,0.75326,3326.0,3325.2,1.437]
[1735573106678,0.30138,3325.2,3325.1,3.2078]
[1735573106878,3.2078,3325.7,3325.1,3.2078]
[1735573107186,0.30138,3325.2,3325.1,3.2078]
[1735573107481,0.30137,3325.3,3325.1,4.00380848]
[1735573107780,3.2078,3325.7,3325.5,0.30134]
[1735573108085,3.2078,3325.7,3325.1,3.2078]
[1735573108086,3.21927,3326.2,3325.6,5.44136936]
[1735573108281,3.21927,3326.2,3326.0,0.3013]
[1735573108483,3.21927,3326.2,3325.8,3.86807517]
[1735573108484,3.21927,3326.2,3326.1,0.79629151]
[1735573108679,0.01147,3326.2,3326.1,4.00409151]
[1735573108987,0.01147,3326.2,3326.1,4.30538151]
[1735573109375,0.69401044,3326.0,3325.8,3.86807517]
[1735573109682,0.69401044,3326.0,3325.9,45.10567907]
[1735573110084,0.69401044,3326.0,3325.9,50.10567907]
[1735573110281,0.69401044,3326.0,3325.9,49.68585111]
[1735573110482,0.69401044,3326.0,3325.9,44.68585111]
[1735573111175,0.69401044,3326.0,3325.9,49.68585111]
[1735573111578,0.01147,3326.2,3326.1,0.30129]
[1735573111780,1.0,3326.9,3326.2,0.7532]
[1735573111983,1.0,3326.9,3326.8,0.30123]
[1735573112185,1.0,3326.9,3326.8,42.53823]
[1735573113183,0.75286,3327.8,3326.8,42.53823]
[1735573113184,0.30111,3328.2,3327.0,1.05425]
[1735573113491,3.50887,3328.6,3328.1,0.30111]
[1735573113787,3.2078,3328.6,3327.6,3.2078]
[1735573113989,0.30112,3328.1,3327.7,0.30115]
[1735573114183,0.3011,3328.3,3327.7,0.30115]
[1735573114386,3.2078,3328.6,3327.6,3.50895]
[1735573114387,0.30113,3328.0,3327.6,3.50895]
[1735573114687,3.2078,3328.2,3327.5,1.436]
[1735573114989,5.0,3328.6,3327.5,1.436]
[1735573114990,3.2078,3327.7,3327.5,1.436]
[1735573115286,0.30115,3327.7,3327.5,1.73717]
[1735573115482,0.30116,3327.6,3327.5,1.436]
[1735573115677,0.30119,3327.3,3327.2,1.436]
[1735573116192,0.30117,3327.5,3327.2,1.73719]
[1735573116385,0.30118,3327.4,3327.2,1.436]
[1735573116581,0.30119,3327.3,3327.2,1.436]
[1735573117086,0.30118,3327.4,3327.2,1.73719]
[1735573117289,0.30118,3327.4,3327.2,1.436]
[1735573117691,0.30119,3327.3,3327.2,1.436]
[1735573118288,0.8653,3327.7,3327.2,1.436]
[1735573118589,0.30119,3327.3,3327.2,1.436]
[1735573118894,3.2078,3327.5,3327.2,1.436]
[1735573119087,3.2078,3327.5,3327.3,3.86807517]
[1735573119287,3.50898,3327.5,3327.3,3.86807517]
[1735573119493,3.2078,3327.5,3327.2,1.436]
[1735573119686,0.30119,3327.3,3327.2,1.436]
[1735573119884,3.2078,3327.5,3327.2,1.436]
[1735573120289,0.30118,3327.4,3327.2,1.73719]
[1735573120589,0.75276,3328.3,3327.2,1.73719]
[1735573120590,3.50893,3327.9,3327.4,0.30118]
[1735573120890,3.2078,3327.9,3327.2,1.436]
[1735573121490,3.50894,3327.9,3327.3,0.30119]
[1735573121691,0.3011,3328.2,3328.0,0.30111]
[1735573121879,3.2078,3328.3,3328.0,0.30112]
[1735573122083,3.5089,3328.3,3328.1,0.30111]
[1735573122286,0.3011,3328.3,3328.1,0.30111]
[1735573122585,0.30112,3328.1,3327.8,40.8]
[1735573122886,0.30113,3327.9,3327.8,38.8]
[1735573123085,0.30119,3327.3,3326.9,0.30122]
[1735573123291,4.0493,3327.8,3327.0,0.37665679]
[1735573123488,4.0493,3327.8,3327.1,0.37665679]
[1735573123789,4.0493,3327.8,3327.3,0.30118]
[1735573123790,0.30118,3327.5,3327.3,0.30118]
[1735573123988,0.30118,3327.4,3327.2,0.30119]
[1735573124291,0.9044,3327.7,3326.9,40.8]
[1735573124485,0.9044,3327.7,3327.0,0.37664665]
[1735573124686,0.9044,3327.7,3326.8,1.471]
[1735573124687,3.2078,3327.3,3326.8,1.471]
[1735573124888,0.30121,3327.0,3326.9,0.3766882]
[1735573125089,0.30121,3327.1,3326.9,0.6779082]
[1735573125289,0.3012,3327.1,3327.0,0.3766882]
[1735573126692,0.30119,3327.3,3327.0,0.6778882]
[1735573126891,0.30119,3327.2,3327.1,0.3766882]
[1735573127696,0.30125,3326.6,3326.3,0.30127]
[1735573127882,3.2078,3326.9,3326.6,0.30124]
[1735573128083,3.2078,3326.9,3326.2,40.8]
[1735573128387,3.2078,3326.9,3326.5,0.30125]
[1735573128388,0.30124,3326.8,3326.5,0.30125]
[1735573128590,3.2078,3326.9,3326.2,40.8]
[1735573128997,0.30128,3326.3,3326.2,40.8]
[1735573129488,0.30131,3325.9,3325.8,1.47]
[1735573129785,3.2078,3326.4,3325.8,1.47]
[1735573129993,0.30131,3325.9,3325.8,1.47]
[1735573130186,3.2078,3326.4,3325.8,1.47]
[1735573130589,0.3013,3326.0,3325.8,1.77132]
[1735573130795,0.9042,3326.3,3325.8,1.47]
[1735573130995,0.3013,3326.1,3325.9,0.30131]
[1735573131295,0.30131,3325.9,3325.8,1.47]
[1735573131492,3.2078,3326.4,3325.8,1.47]
[1735573131790,0.8565,3326.8,3326.2,3.54848467]
[1735573131993,0.30124,3326.7,3326.5,0.30125]
[1735573132196,0.30125,3326.6,3326.4,0.30126]
[1735573132494,0.30124,3326.7,3326.5,0.30125]
[1735573132791,0.30124,3326.7,3326.4,0.30126]
[1735573132988,0.30124,3326.7,3326.5,0.30126]
[1735573133790,0.30124,3326.7,3326.4,0.30126]
[1735573133988,3.2078,3326.9,3326.2,3.54848467]
[1735573134184,0.30123,3326.8,3326.2,3.54848467]
[1735573134396,0.30124,3326.7,3326.2,3.54848467]
[1735573134595,0.8321,3327.6,3326.0,4.20682514]
[1735573134596,0.30117,3327.5,3327.2,0.30119]
[1735573134798,0.30119,3327.3,3327.0,0.30121]
[1735573135283,1.7477,3327.6,3327.0,0.30121]
[1735573135489,0.3012,3327.2,3327.0,0.30121]
[1735573135794,0.30121,3327.1,3326.6,3.54848467]
[1735573135994,1.7477,3327.6,3327.0,0.30121]
[1735573136199,1.7477,3327.6,3327.0,3.54848467]
[1735573136494,0.30119,3327.3,3327.2,0.30119]
[1735573136683,1.7477,3327.6,3326.6,3.54848467]
[1735573137095,0.30119,3327.3,3326.7,41.55311]
[1735573137292,1.7477,3327.6,3326.7,40.8]
[1735573137497,0.3012,3327.2,3326.7,40.8]
[1735573137704,0.30123,3326.9,3326.8,0.30123]
[1735573137997,1.7477,3327.6,3326.7,40.8]
[1735573138193,0.3012,3327.2,3326.7,40.8]
[1735573138495,0.3012,3327.2,3327.1,0.3012]
[1735573138898,0.30121,3327.0,3326.9,3.54848467]
[1735573139097,0.75297,3327.3,3326.5,8.22728467]
[1735573139297,0.30121,3327.1,3327.0,0.30121]
[1735573139995,3.50898,3327.4,3327.3,0.30119]
[1735573140195,0.30117,3327.5,3327.4,0.30117]
[1735573140392,2.0,3327.7,3327.3,3.54848467]
[1735573140590,2.0,3327.7,3327.4,3.97996]
[1735573140792,2.0,3327.7,3327.6,0.30116]
[1735573141190,0.87351588,3327.7,3327.6,0.30116]
[1735573141501,3.50886,3328.8,3328.7,0.30106]
[1735573141893,3.2078,3328.8,3328.3,45.81948467]
[1735573142092,0.30106,3328.7,3328.5,0.30107]
[1735573142396,3.2078,3328.8,3328.3,45.81948467]
[1735573142900,3.2078,3328.8,3328.3,5.01948467]
[1735573143397,3.50885,3328.8,3328.6,0.30106]
[1735573143598,3.50885,3328.8,3328.3,5.01948467]
[1735573143599,3.2078,3328.8,3328.3,5.01948467]
[1735573143898,0.30106,3328.7,3328.4,0.30108]
[1735573144092,0.30105,3328.8,3328.5,0.30107]
[1735573144396,0.30104,3329.0,3328.6,0.30106]
[1735573144601,3.2078,3329.2,3328.4,3.2078]
[1735573144900,0.30102,3329.1,3328.8,0.30104]
[1735573145200,0.30103,3329.1,3328.8,0.30104]
[1735573145402,3.2078,3329.2,3328.4,3.2078]
[1735573145601,3.2078,3329.2,3329.0,0.30103]
[1735573146102,3.2078,3329.2,3328.4,3.96051]
[1735573146298,1.6833,3329.3,3329.1,0.30102]
[1735573146502,3.2078,3329.4,3328.4,3.2078]
[1735573146691,3.5088,3329.4,3329.2,0.30101]
[1735573146893,1.50462,3330.3,3328.4,48.10596319]
[1735573146894,0.30098,3329.7,3328.9,0.75261]
[1735573147199,0.75234,3330.2,3328.9,0.75261]
[1735573147200,0.30094,3330.1,3329.8,0.30095]
[1735573147403,3.2078,3330.2,3329.5,0.30098]
[1735573147695,0.30095,3330.0,3329.7,0.30096]
[1735573147900,0.30095,3329.9,3329.7,0.30096]
[1735573148205,0.30095,3330.0,3329.5,0.30099]
[1735573148396,3.2078,3329.8,3329.0,3.2078]
[1735573148696,3.2078,3329.4,3329.0,3.2078]
[1735573148899,0.30102,3329.1,3329.0,3.2078]
[1735573149296,0.30102,3329.2,3329.0,3.2078]
[1735573149500,0.8671,3329.5,3329.0,3.2078]
[1735573149700,0.8671,3329.5,3329.3,0.301]
[1735573149998,0.8671,3329.5,3329.0,3.2078]
[1735573150199,0.8671,3329.5,3329.3,0.301]
[1735573150398,3.2078,3329.4,3329.0,3.2078]
[1735573150603,0.30102,3329.2,3329.0,3.50883]
[1735573150797,3.2078,3329.4,3329.0,3.2078]
[1735573150994,0.8939,3329.7,3329.1,0.30102]
[1735573151200,0.30099,3329.5,3329.2,0.30101]
[1735573151400,0.30099,3329.5,3329.3,0.301]
[1735573151800,0.30098,3329.6,3329.3,0.301]
[1735573152108,0.30097,3329.7,3329.2,0.30101]
[1735573152306,3.2078,3329.8,3329.0,3.2078]
[1735573152600,3.2078,3329.8,3329.2,0.30101]
[1735573152799,3.2078,3329.8,3329.0,3.2078]
[1735573152998,0.30099,3329.5,3329.1,0.30102]
[1735573153201,0.301,3329.4,3329.0,3.50883]
[1735573153508,0.30099,3329.5,3329.2,0.30101]
[1735573153804,3.2078,3329.8,3328.8,1.479]
[1735573154105,0.30098,3329.6,3329.3,0.301]
[1735573154306,0.30098,3329.6,3328.8,1.479]
[1735573154506,0.301,3329.4,3329.1,0.30102]
[1735573154806,3.2078,3329.3,3329.2,0.30101]
[1735573155404,3.50881,3329.3,3328.8,1.479]
[1735573155708,0.30101,3329.2,3328.9,0.30103]
[1735573155905,3.2078,3329.7,3328.8,1.479]
[1735573156208,0.30101,3329.3,3329.0,0.30103]
[1735573156399,0.30101,3329.3,3329.1,0.30102]
[1735573156600,0.30102,3329.2,3328.9,0.30104]
[1735573156801,3.2078,3329.3,3328.8,1.479]
[1735573157001,3.2078,3329.3,3328.9,0.30104]
[1735573157002,0.30101,3329.2,3328.9,0.30104]
[1735573157197,3.2078,3329.3,3328.8,1.479]
[1735573157402,0.30102,3329.2,3328.9,0.30104]
[1735573157699,3.2078,3329.3,3328.8,1.479]
[1735573158304,3.2078,3329.3,3329.2,0.30101]
[1735573158504,3.2078,3329.3,3328.8,1.479]
[1735573158698,3.2078,3329.3,3329.1,0.30101]
[1735573158903,3.2078,3329.3,3329.2,0.30101]
[1735573159705,3.2078,3329.8,3329.3,0.301]
[1735573159907,3.2078,3329.8,3328.9,3.85275215]
[1735573160110,0.30097,3329.7,3329.5,0.30098]
[1735573160406,3.2078,3329.8,3329.1,0.75256]
[1735573160606,3.50876,3329.8,3329.6,0.30097]
[1735573160799,3.2078,3329.8,3329.1,0.75256]
[1735573161002,3.50876,3329.8,3329.6,0.30097]
[1735573161812,3.2078,3329.8,3329.6,0.30097]
[1735573162112,3.50876,3329.8,3329.6,0.30097]
[1735573162315,3.50876,3329.8,3329.1,0.75256]
[1735573162316,3.2078,3329.8,3329.1,0.75256]
[1735573162511,3.50876,3329.8,3329.6,0.30097]
[1735573162813,3.50876,3329.8,3329.5,0.30098]
[1735573162814,3.2078,3329.8,3329.5,0.30098]
[1735573163016,3.2078,3329.8,3329.0,3.2078]
[1735573163219,3.2078,3329.8,3329.5,0.30098]
[1735573163511,0.30098,3329.6,3329.5,0.30098]
[1735573163723,0.75243,3329.7,3329.0,1.478]
[1735573163917,3.50882,3329.1,3329.0,1.478]
[1735573164507,0.30105,3328.8,3328.6,0.30106]
[1735573164920,0.30103,3329.0,3328.7,0.30106]
[1735573165118,3.2078,3329.1,3328.4,40.8]
[1735573165920,3.2078,3328.7,3327.8,3.2078]
[1735573166315,0.30113,3328.0,3327.9,40.8]
[1735573166715,0.8397,3328.6,3328.5,0.30108]
[1735573167015,3.2078,3328.8,3328.3,3.54410469]
[1735573167215,0.30108,3328.5,3328.2,0.3011]
[1735573167511,0.30108,3328.5,3328.4,0.30108]
[1735573167717,1.7101,3328.7,3328.2,0.3011]
[1735573167917,0.3011,3328.2,3328.1,1.479]
[1735573168107,0.30111,3328.2,3328.1,0.30111]
[1735573168311,3.2078,3328.4,3327.9,40.8]
[1735573168513,0.3011,3328.2,3328.0,0.30111]
[1735573168818,0.30111,3328.1,3328.0,0.30111]
[1735573169020,0.30111,3328.2,3328.1,0.30111]
[1735573169324,3.2078,3328.4,3328.0,0.30111]
[1735573169325,0.30112,3328.1,3328.0,0.30111]
[1735573169613,0.30112,3328.0,3327.9,40.8]
[1735573169822,3.96383508,3328.4,3327.7,3.2078]
[1735573170021,0.30114,3327.9,3327.8,0.30113]
[1735573170224,0.30114,3327.8,3327.7,3.50894]
[1735573170417,3.96383508,3328.4,3327.7,3.2078]
[1735573170618,0.30114,3327.8,3327.7,3.2078]
[1735573171018,0.30114,3327.8,3327.7,3.50895]
[1735573171218,3.21110508,3328.4,3327.7,3.2078]
[1735573171419,0.3011,3328.3,3328.2,0.3011]
[1735573171915,0.00330508,3328.4,3328.3,0.30109]
[1735573171916,0.30439508,3328.4,3328.3,0.30109]
[1735573172115,0.00330508,3328.4,3328.3,0.30109]
[1735573172522,0.30439508,3328.4,3328.3,0.30109]
[1735573172718,0.00330508,3328.4,3328.3,0.30109]
[1735573173525,0.3011,3328.3,3328.2,0.3011]
[1735573174326,0.30439508,3328.4,3328.3,0.30109]
[1735573174523,0.00330508,3328.4,3328.3,0.30109]
[1735573174923,0.00330508,3328.4,3328.3,41.10109]
[1735573175123,0.00330508,3328.4,3328.3,44.64519469]
[1735573175426,0.30104,3328.9,3328.3,44.34410469]
[1735573175719,3.2078,3329.2,3328.3,44.34410469]
[1735573175720,3.2078,3329.2,3328.6,0.75268]
[1735573176017,3.2078,3329.2,3328.5,2.23169]
[1735573176219,0.30106,3328.8,3328.7,0.30105]
[1735573176419,0.30105,3328.9,3328.8,0.30104]
[1735573176625,0.30104,3329.0,3328.9,0.30104]
[1735573176814,0.30102,3329.1,3328.5,1.479]
[1735573177019,3.2078,3329.2,3329.1,0.30102]
[1735573178235,3.2078,3329.2,3328.7,4.29674469]
[1735573178236,3.50882,3329.2,3329.0,0.30102]
[1735573178422,3.2078,3329.2,3328.7,5.00910469]
[1735573178927,3.2078,3329.2,3328.9,0.30103]
[1735573179120,0.30103,3329.1,3328.9,0.30103]
[1735573179317,3.2078,3329.2,3328.9,0.30103]
[1735573179519,3.2078,3329.2,3328.7,5.00910469]
[1735573179823,3.2078,3329.2,3328.7,1.465]
[1735573180019,0.30105,3328.8,3328.7,1.465]
[1735573180825,3.2078,3329.2,3328.3,3.54410469]
[1735573181320,8.2078,3329.2,3328.2,4.63954458]
[1735573181524,0.30109,3328.3,3328.2,4.63954458]
[1735573182125,2.03077,3328.6,3328.5,0.30108]
[1735573182329,1.7297,3328.6,3328.5,0.30108]
[1735573182629,2.03077,3328.6,3328.5,0.30108]
[1735573182824,2.03077,3328.6,3328.2,0.75275]
[1735573182825,3.2078,3329.2,3328.2,0.75275]
[1735573183027,0.30105,3328.9,3328.3,4.29683469]
[1735573183227,1.7414,3329.1,3328.3,3.54410469]
[1735573183430,0.30104,3329.0,3328.9,0.30104]
[1735573183728,0.30106,3328.8,3328.7,0.30105]
[1735573183931,1.7414,3329.1,3328.3,3.54410469]
[1735573184131,2.04243,3329.1,3329.0,0.30103]
[1735573184628,0.30105,3328.9,3328.8,0.30104]
[1735573184830,0.30103,3329.1,3329.0,0.30103]
[1735573185025,0.30105,3328.9,3328.5,0.7527]
[1735573185224,0.30106,3328.7,3328.6,0.30106]
[1735573185625,0.30106,3328.8,3328.7,0.30105]
[1735573185827,3.2078,3329.2,3328.4,45.43954458]
[1735573186025,0.30105,3328.8,3328.7,0.30106]
[1735573186220,0.30107,3328.7,3328.6,0.30106]
[1735573186421,0.30108,3328.5,3328.4,45.43954458]
[1735573186625,0.30108,3328.5,3328.4,4.94063458]
[1735573187337,0.30108,3328.5,3328.4,0.30109]
[1735573188029,1.22307,3328.6,3328.5,0.30108]
[1735573188232,2.64763083,3328.9,3328.8,0.30105]
[1735573188428,0.30106,3328.8,3328.7,0.30105]
[1735573189030,2.34658083,3328.9,3328.3,4.29683469]
[1735573189235,2.64762083,3328.9,3328.8,0.30105]
[1735573189731,2.34658083,3328.9,3328.8,0.30105]
[1735573190134,6.47638083,3329.2,3328.7,3.54410469]
[1735573190330,6.47638083,3329.2,3329.1,0.30102]
[1735573190839,6.77739083,3329.2,3329.1,0.30102]
[1735573191528,6.77739083,3329.2,3328.5,5.39223458]
[1735573191529,5.47638083,3329.2,3328.5,7.84734458]
[1735573191732,0.30106,3328.8,3328.7,0.30105]
[1735573192032,0.30106,3328.7,3328.6,7.29045247]
[1735573192431,0.30106,3328.7,3328.6,6.98938247]
[1735573193434,2.34658083,3328.9,3328.4,0.30108]
[1735573193629,0.75264,3328.8,3328.2,4.7245579]
[1735573193836,0.30109,3328.5,3328.4,0.30108]
[1735573194541,0.75264,3328.8,3328.7,0.30106]
[1735573194542,2.34658083,3328.8,3328.7,0.30106]
[1735573194739,2.64763083,3328.8,3328.7,0.30106]
[1735573194945,2.34658083,3328.8,3328.7,0.30106]
[1735573195643,2.34658083,3328.8,3328.7,44.64516469]
[1735573195938,2.34658083,3329.0,3328.9,0.30104]
[1735573196842,2.64761083,3329.0,3328.9,0.30104]
[1735573197145,2.34658083,3329.0,3328.9,0.30104]
[1735573197344,0.30102,3329.1,3329.0,0.30102]
[1735573197643,5.47638083,3329.2,3328.6,4.7245579]
[1735573198044,0.30105,3328.9,3328.8,0.30105]
[1735573198244,0.30102,3329.1,3328.7,0.30105]
[1735573198545,0.30105,3328.9,3328.8,0.30105]
[1735573198749,0.30105,3328.8,3328.7,0.30105]
[1735573199243,0.30104,3328.9,3328.8,0.30104]
[1735573199446,0.30104,3328.9,3328.5,4.7245579]
[1735573199838,0.30104,3328.9,3328.8,0.30105]
[1735573200045,2.34658083,3329.0,3328.5,4.7245579]
[1735573200246,0.30105,3328.9,3328.8,0.30104]
[1735573200439,2.34658083,3329.0,3328.5,4.7245579]
[1735573200840,2.64762083,3329.0,3328.9,0.30104]
[1735573201143,0.30106,3328.8,3328.5,4.7245579]
[1735573201344,0.30106,3328.7,3328.6,0.30106]
[1735573201643,0.30107,3328.6,3328.4,0.30108]
[1735573201845,0.8801,3328.7,3328.6,0.30107]
[1735573202144,1.18116,3328.7,3328.6,0.30107]
[1735573202545,0.8801,3328.7,3328.6,0.30107]
[1735573203451,0.8801,3328.7,3328.3,4.7245579]
[1735573203649,0.30107,3328.6,3328.5,0.30107]
[1735573203844,0.8801,3328.7,3328.6,0.30107]
[1735573204047,2.34658083,3328.9,3328.4,3.2078]
[1735573204248,3.46906982,3329.0,3328.4,3.2078]
[1735573204549,3.77009982,3329.0,3328.9,0.30104]
[1735573204749,3.46906982,3329.0,3328.9,0.30104]
[1735573204950,0.30104,3328.9,3328.8,0.30104]
[1735573205150,3.77010982,3329.0,3328.9,0.30104]
[1735573205346,2.66523237,3329.1,3328.6,0.30107]
[1735573205545,2.36420237,3329.1,3328.7,40.8]
[1735573205742,0.30103,3329.0,3328.9,0.30103]
[1735573206045,0.30103,3329.0,3328.5,5.0256279]
[1735573206251,2.36420237,3329.1,3328.5,4.7245579]
[1735573206550,2.36420237,3329.1,3328.6,4.7245579]
[1735573206753,0.30104,3329.0,3328.9,0.30103]
[1735573206946,0.30104,3329.0,3328.8,0.30105]
[1735573206947,0.30103,3329.0,3328.8,0.30105]
[1735573207143,2.36420237,3329.1,3329.0,0.30103]
[1735573207349,2.66522237,3329.1,3329.0,0.30103]
[1735573207657,2.36420237,3329.1,3329.0,0.30103]
[1735573209352,2.36420237,3329.3,3329.2,0.30101]
[1735573209855,1.60154897,3329.3,3329.2,0.30101]
[1735573210356,1.60154897,3329.3,3329.2,1.6182438]
[1735573210554,2.32706982,3329.4,3329.3,0.301]
[1735573210750,4.64485936,3329.6,3329.3,4.1275]
[1735573211058,4.64485936,3330.4,3330.3,0.30091]
[1735573211245,2.6731955,3330.4,3330.3,7.05281469]
[1735573211450,0.46730645,3330.4,3330.3,7.05281469]
[1735573211952,0.46730645,3330.4,3330.3,8.36948086]
[1735573212260,0.46730645,3330.4,3330.3,7.05281469]
[1735573212955,0.10110645,3330.4,3330.3,7.05281469]
[1735573213156,0.30085,3331.1,3330.9,0.30085]
[1735573213347,4.1407,3331.6,3330.9,3.2078]
[1735573213850,0.30077,3331.9,3331.4,0.30081]
[1735573214045,3.2078,3332.5,3331.9,0.30077]
[1735573214046,1.18806,3332.1,3331.9,0.30077]
[1735573214249,0.30076,3332.0,3331.8,0.30077]
[1735573214553,0.8873,3332.1,3331.7,0.30078]
[1735573214759,0.30076,3332.0,3331.7,3.2078]
[1735573215054,0.8873,3332.1,3332.0,0.30076]
[1735573215253,6.1067942,3332.5,3329.6,1.55800071]
[1735573215254,5.8060742,3332.5,3329.6,1.55800071]
[1735573215556,6.75190469,3330.8,3329.3,3.2078]
[1735573215761,0.8873,3330.7,3330.5,11.73356087]
[1735573216347,3.2078,3331.6,3330.5,11.73356087]
[1735573216560,0.30083,3331.2,3331.1,40.8]
[1735573216754,3.2078,3331.2,3331.1,40.8]
[1735573216958,3.50863,3331.2,3331.1,40.8]
[1735573217260,3.2078,3331.6,3331.1,40.8]
[1735573217447,3.2078,3331.6,3331.1,41.10084]
[1735573217851,3.2078,3331.6,3331.2,0.30083]
[1735573218153,0.30083,3331.2,3331.1,40.8]
[1735573218357,0.30083,3331.2,3329.2,3.2078]
[1735573218358,0.75212,3331.1,3329.2,3.2078]
[1735573218553,0.30094,3330.1,3329.7,3.2078]
[1735573218757,3.2078,3330.6,3329.8,40.8]
[1735573219058,3.2078,3330.6,3330.3,0.30091]
[1735573219252,3.2078,3330.6,3330.1,4.7268]
[1735573219655,3.2078,3330.6,3330.5,0.30089]
[1735573219860,0.8844,3331.0,3330.5,3.2078]
[1735573220052,5.8060742,3331.2,3330.5,8.2078]
[1735573220248,0.8972,3331.5,3331.4,0.30081]
[1735573220461,5.8060742,3332.0,3331.0,45.5268]
[1735573220663,6.7032742,3332.0,3331.9,0.30076]
[1735573220863,5.8060742,3332.0,3331.9,0.30076]
[1735573221154,5.8060742,3332.0,3331.8,3.2078]
[1735573221359,6.1068342,3332.0,3331.8,3.2078]
[1735573221550,0.3007,3332.7,3332.4,0.30072]
[1735573221755,4.9886,3333.0,3332.5,3.2078]
[1735573221959,5.28927,3333.0,3332.6,0.3007]
[1735573222155,5.28927,3333.0,3332.5,3.2078]
[1735573222156,5.8060742,3333.1,3332.5,8.2078]
[1735573222361,5.8060742,3333.1,3333.0,0.30066]
[1735573222661,5.8060742,3333.1,3332.9,0.30067]
[1735573222857,5.8060742,3333.1,3332.8,0.30068]
[1735573223164,0.30065,3333.1,3333.0,40.8]
[1735573223351,0.30065,3333.2,3333.0,40.8]
[1735573223550,0.45119706,3333.3,3333.0,40.8]
[1735573224364,5.8060742,3334.2,3333.2,3.54410469]
[1735573224559,0.30057,3334.1,3333.8,3.54410469]
[1735573224857,0.30055,3334.3,3333.9,1.518]
[1735573225163,5.8060742,3334.6,3333.9,1.518]
[1735573225560,0.30054,3334.5,3334.0,0.30057]
[1735573225859,0.30052,3334.6,3334.2,0.30055]
[1735573226057,4.1271,3334.7,3333.9,1.518]
[1735573226262,0.30052,3334.6,3334.2,3.54410469]
[1735573226456,0.30055,3334.3,3333.9,1.518]
[1735573226760,0.30057,3334.0,3333.9,1.518]
[1735573227354,3.50836,3334.2,3333.9,42.318]
[1735573227964,3.50836,3334.2,3333.9,1.518]
[1735573228260,0.30057,3334.1,3333.9,1.518]
[1735573228765,3.50836,3334.2,3333.9,1.518]
[1735573229059,3.2078,3334.2,3334.0,40.8]
[1735573229258,0.30056,3334.1,3334.0,40.8]
[1735573230566,6.8221,3334.1,3332.6,3.54410469]
[1735573230753,0.30066,3333.0,3332.6,3.84480469]
[1735573230958,3.2078,3333.4,3332.6,3.54410469]
[1735573231265,0.30064,3333.3,3333.0,3.54410469]
[1735573231462,0.9369,3333.3,3333.1,40.8]
[1735573231666,0.30065,3333.2,3333.1,40.8]
[1735573232964,0.30065,3333.2,3331.8,3.54410469]
[1735573232965,0.75169,3332.9,3331.8,3.54410469]
[1735573233160,0.75169,3332.9,3331.7,3.2078]
[1735573233161,3.2078,3332.4,3331.7,3.2078]
[1735573233472,0.8689,3332.3,3331.7,3.2078]
[1735573233654,0.30076,3332.0,3331.7,3.2078]
[1735573233966,0.30075,3332.0,3331.9,40.8]
[1735573234668,1.7442,3332.3,3331.9,40.8]
[1735573234859,3.2078,3333.2,3332.2,3.2078]
[1735573235163,0.30069,3332.7,3332.6,3.54410469]